Cogmind - Beta 14 @@@ ROGUE MODE // 2024.09.27 @ 05:35:21 Player: RrQq Result: Destroyed by H-66 Slayer with Gauss Rifle Performance ------------- Evolutions (4) 2000 Regions Visited (10) 2000 Robots Destroyed (199) 995 Value Destroyed (5703) 5703 Prototype IDs (15) 300 Alien Tech Used (0) 0 Bonus (859) 859 TOTAL SCORE: 11857 Bonus ------- High Alert Combat Kills 620 Follower Combat Kills 239 Cogmind --------- Core Integrity 0/850 Matter 253/300 Energy 100/100 System Corruption 2% Temperature Cool (0) Movement Core (50) Location -6/Lower Caves Parts ------- > --- POWER (2) -------- (None) > --- PROPULSION (4) --- (None) > --- UTILITY (7) ------ Improved Signal Interpreter Improved Reaction Control System > --- WEAPON (2) ------- (None) > --- INVENTORY (5) ---- F-cell Engine Improved Sensor Array Improved Signal Interpreter Advanced Signal Interpreter Gauss Cannon Peak State ------------ > --- POWER ------------ F-cell Engine F-cell Engine > --- PROPULSION ------- Medium Treads Medium Treads Improved Medium Treads Compact Wheel > --- UTILITY ---------- Advanced Heat Sink Medium Storage Unit High-capacity Storage Unit Improved Signal Interpreter Targeting Computer Improved Heavy Armor Plating > --- WEAPON ----------- Improved Heavy Machine Gun Great Axe > --- INVENTORY -------- Angular Momentum Engine F-cell Engine Light Fission Core Q-thruster Q-thruster Coolant Injector Energy Well Improved Sensor Array Improved Signal Interpreter Improved Signal Interpreter Improved Signal Interpreter Advanced Signal Interpreter Advanced Terrain Scanner Improved Field Recycling Unit Gauss Rifle Gauss Rifle Gauss Rifle Coil Gun Advanced Assault Cannon Gauss Cannon [Rating: 66] Favorites ----------- Power Cooled Ion Engine Engine Cooled Ion Engine Power Core Light Nuclear Core Propulsion Light Treads Treads Light Treads Leg Flexi-carbon Leg Wheel Wheel Hover Unit Aerolev Unit Flight Unit Q-thruster Utility High-capacity Storage Unit Device Shield Generator Storage High-capacity Storage Unit Processor Improved Signal Interpreter Hackware Hacking Suite Protection Hardened Light Armor Plating Weapon Flak Cannon Energy Gun Small Laser Energy Cannon Advanced Beam Cannon Ballistic Gun High-powered Shotgun Ballistic Cannon Flak Cannon Launcher Rocket Launcher Impact Weapon Mace Slashing Weapon Great Axe Piercing Weapon Force Lance Build | -11 -10 -10 -9 -9 -8 -7 -7 -7 -6 -6 ------- Run | Yrd Mat Min Mat Min Mat Fac Was Fac Fac Low Slots Evolved 8 | . . . 2 . 2 2 . . 2 . Power 1 | . . . . . . . . . 1 . Propulsion 2 | . . . 1 . 1 . . . . . Utility 5 | . . . 1 . 1 2 . . 1 . Weapon . | . . . . . . . . . . . Parts Attached 168 | 4 18 3 48 2 36 18 4 . 29 6 Power 20 | . 4 . 6 . 2 2 . . 6 . Engine 15 | . 4 . 4 . 2 2 . . 3 . Core 5 | . . . 2 . . . . . 3 . Reactor . | . . . . . . . . . . . Propulsion 46 | 2 3 . 14 . 13 3 . . 9 2 Treads 37 | 2 3 . 12 . 12 3 . . 5 . Leg 1 | . . . . . . . . . 1 . Wheel 4 | . . . 1 . . . . . 3 . Hover 1 | . . . . . 1 . . . . . Flight 3 | . . . 1 . . . . . . 2 Utility 49 | 2 3 1 9 2 10 8 . . 12 2 Device 17 | 2 . . 2 1 1 3 . . 6 2 Storage 7 | . 2 . 2 . 1 . . . 2 . Processor 4 | . . . . . . 2 . . 2 . Hackware 2 | . . . . . 1 . . . 1 . Protection 19 | . 1 1 5 1 7 3 . . 1 . Artifact . | . . . . . . . . . . . Weapon 53 | . 8 2 19 . 11 5 4 . 2 2 Energy Gun 10 | . 6 1 2 . 1 . . . . . Energy Cannon 1 | . . . 1 . . . . . . . Ballistic Gun 6 | . . 1 2 . 1 . . . 1 1 Ballistic Cannon 20 | . . . 9 . 7 3 . . . 1 Launcher 10 | . 2 . 5 . . 1 2 . . . Special Weapon . | . . . . . . . . . . . Impact Weapon 1 | . . . . . 1 . . . . . Slashing Weapon 4 | . . . . . 1 1 1 . 1 . Piercing Weapon 1 | . . . . . . . 1 . . . Special Melee Weapon . | . . . . . . . . . . . Unidentified Prototypes 13 | . . . 6 1 3 . . . 3 . Parts Lost 35 | . 7 . 1 . 1 7 4 . 7 8 Power 4 | . 1 . . . . 1 . . 1 1 Propulsion 13 | . 2 . . . . 2 2 . 4 3 Utility 10 | . . . 1 . . 3 2 . 1 3 Weapon 8 | . 4 . . . 1 1 . . 1 1 Highest Loss Streak 5 | . 2 . 1 . 1 5 4 . 3 5 To Critical Strikes 1 | . . . . . 1 . . . . . Average Slot Usage (%) 91 | . 97 100 98 100 99 92 37 11 70 34 Engine 9 | . 13 14 9 11 9 7 2 . 8 3 Treads 27 | . 26 28 31 33 35 25 9 . 11 3 Wheel 1 | . . . 1 . . . . . 6 1 Device 5 | . 3 . 8 . 2 8 4 . 6 6 Storage 9 | . 14 14 11 11 9 7 2 . 7 2 Processor 2 | . . . . . . 9 7 7 11 9 Hackware 1 | . . . . . 7 1 . . 2 . Protection 12 | . 10 14 11 22 16 15 4 . . 1 Energy Gun 4 | . 20 24 1 . . . . . . . Ballistic Gun 2 | . 6 3 5 . . . . . 2 3 Ballistic Cannon 8 | . . . 6 22 17 14 . . . . Launcher 2 | . . . 8 . . . 4 . . . Peak Build Rating 66 | 9 9 12 23 29 36 43 43 12 66 62 Average Rating 23 | 6 7 8 19 23 31 39 17 8 40 25 On Entrance 20 | 6 9 8 12 23 23 35 42 12 4 56 Naked Turns . | . . . . . . . . . . . Heaviest Build 99 | 13 50 52 67 67 70 73 75 6 98 99 Greatest Support 85 | 40 40 40 63 63 85 85 83 3 26 16 Greatest Overweight (x) 6 | . 2 1 6 1 1 1 1 1 6 6 Average Overweight (x) . | . . 1 1 1 . . . . 2 . Largest Inventory Capacity 20 | 8 20 20 20 20 20 20 20 5 20 20 Average Capacity 18 | 8 15 20 20 20 20 20 10 5 13 8 Most Carried 20 | 7 16 20 20 20 20 20 18 5 20 14 Average Carried 17 | 5 9 18 19 19 19 19 9 4 11 7 Final Capacity 20 | 8 20 20 20 20 20 20 5 5 20 5 Final Carried 20 | 4 16 20 20 20 20 18 5 5 15 5 Class Distribution -------------------- 81% | Mutant 18% | Scavenger-Mutant Dominant Class ---------------- Mutant | -10/Materials Scavenger-Mutant | -10/Mines Mutant | -9/Materials Mutant | -9/Mines Mutant | -8/Materials Mutant | -7/Factory Mutant | -7/Waste Mutant | -7/Factory Scavenger-Mutant | -6/Factory Mutant | -6/Lower Caves Resources | -11 -10 -10 -9 -9 -8 -7 -7 -7 -6 -6 ----------- Run | Yrd Mat Min Mat Min Mat Fac Was Fac Fac Low Matter Collected 5980 | 273 613 55 2255 150 1207 781 . . 552 94 Remotely . | . . . . . . . . . . . Salvage Created 5735 | 32 1162 . 2093 108 1066 390 . . 773 111 Parts 359 | 7 46 . 169 7 56 27 . . 40 7 Haulers Intercepted 15 | . 2 . 5 . 6 . . . 2 . Recyclers Shooed 5 | . 2 . 2 . . . . . 1 . Parts Field Recycled . | . . . . . . . . . . . Retrieved Matter . | . . . . . . . . . . . Parts Self-Destructed 11 | . . . . . . . . . . 11 Prevented . | . . . . . . . . . . . Kills | -11 -10 -10 -9 -9 -8 -7 -7 -7 -6 -6 ------- Run | Yrd Mat Min Mat Min Mat Fac Was Fac Fac Low Combat Hostiles Destroyed 124 | . 20 . 50 3 21 20 . . 5 5 Melee 5 | . . . . . . . . . 5 . Guns 36 | . 17 . 15 . . . . . . 4 Cannons 59 | . . . 14 3 21 20 . . . 1 AOE 23 | . 2 . 21 . . . . . . . Classes Destroyed 17 | 1 6 . 7 . . 3 . . . . Worker 14 | . 2 . 8 1 . 2 . . 1 . Builder 14 | . 1 . 13 . . . . . . . Tunneler 7 | 3 . . 2 1 . . . . 1 . Hauler 15 | . 2 . 5 . 6 . . . 2 . Recycler 9 | . 2 . 3 . 3 . . . 1 . Mechanic 4 | . . . 3 . 1 . . . . . Operator 3 | . . . 2 . 1 . . . . . Watcher 11 | . 2 . 5 . 1 1 . . 2 . Swarmer 18 | . . . 7 . . 6 . . . 5 Grunt 70 | . 20 . 26 3 15 5 . . 1 . Brawler 4 | . . . 3 . . 1 . . . . Duelist 3 | . . . 3 . . . . . . . Protector 1 | . . . 1 . . . . . . . Sentry 18 | . . . 10 . 6 1 . . 1 . Hunter 2 | . . . . . . 1 . . 1 . Programmer 7 | . . . . . . 5 . . 2 . Heavy 1 | . . . . . . 1 . . . . Best Kill Streak 10 | 2 4 . 10 4 4 4 . . 2 4 Combat Bots Only 8 | . 2 . 8 3 3 4 . . 1 4 Max Kills in Single Turn 3 | 2 1 . 3 2 2 1 . . 1 1 Gunslinging 1 | . . . 1 . . . . . . . Exploded 3 | . 1 . 3 . . . . . . . Melee 1 | . . . . . . . . . 1 . Uniques/NPCs Destroyed . | . . . . . . . . . . . Combat | -11 -10 -10 -9 -9 -8 -7 -7 -7 -6 -6 -------- Run | Yrd Mat Min Mat Min Mat Fac Was Fac Fac Low Hostile Shots Fired 747 | . 111 . 120 6 71 105 3 83 142 106 Missed 217 | . 25 . 31 4 15 34 . 37 46 25 Damage Taken 7699 | . 1033 . 902 22 854 1265 157 452 1673 1341 Core 1797 | . 75 . 128 . 88 180 31 437 380 478 Absorbed by Shields 460 | . . . 332 . . 41 47 . 40 . Redirected to Shielding 50 | . 17 . . . 33 . . . . . Regen/Repaired (Parts) 283 | . 62 . 87 . 134 . . . . . Core Remaining (%) 65 | 100 . 70 . 68 84 . . 7 . . Volleys Fired 457 | 11 104 1 183 5 73 64 4 . . 12 Largest 2 | 2 2 2 2 2 2 2 2 . . 2 Hottest 100 | 70 100 80 88 88 88 88 78 . . 48 Shots Fired 806 | 22 186 2 289 10 145 121 8 . 1 22 Gun 357 | 22 183 2 129 . . . . . 1 20 Cannon 347 | . . . 71 10 145 119 . . . 2 Launcher 102 | . 3 . 89 . . 2 8 . . . Special . | . . . . . . . . . . . Kinetic 533 | 11 46 . 179 10 145 119 . . 1 22 Thermal 171 | 11 137 2 21 . . . . . . . Explosive 102 | . 3 . 89 . . 2 8 . . . Electromagnetic . | . . . . . . . . . . . Robot Hit Streak 19 | 6 13 . 10 4 19 12 6 . . 7 Robot Miss Streak 14 | 2 4 2 8 4 9 14 4 . . 2 Penetration Max 1 | . . . . . . . . . . 1 Secondary Targets 4 | . . . 2 . . . . . . 2 Max Gunslinging Chain 1 | . . . 1 . . . . . . 1 Shots Hit Robots 598 | 12 125 . 160 9 127 108 6 4 33 14 Core Hits 483 | 4 50 1 142 15 140 106 2 . 16 7 Critical Kills . | . . . . . . . . . . . Critical Parts Destroyed 1 | . . . 1 . . . . . . . Critical Strikes 16 | 1 7 . 3 . . . . . 5 . Burn 8 | 1 7 . . . . . . . . . Destroy 1 | . . . 1 . . . . . . . Blast 2 | . . . 2 . . . . . . . Sever 5 | . . . . . . . . . 5 . Melee Attacks 57 | . . . . . 2 6 . 5 44 . Impact 1 | . . . . . 1 . . . . . Slashing 51 | . . . . . 1 6 . . 44 . Piercing 5 | . . . . . . . . 5 . . Sneak Attacks 5 | . . . . . . . . . 5 . Combat Hostiles . | . . . . . . . . . . . Follow-up Attacks . | . . . . . . . . . . . Damage Inflicted 15709 | 162 1722 3 6165 207 2299 2257 854 172 1498 370 Guns 3565 | 162 1615 . 1479 . . . . . . 309 Cannons 5550 | . . . 1045 190 2268 1993 . . . 54 Explosions 4841 | . 94 . 3629 . . 264 854 . . . Melee 1653 | . . . . . . . . 172 1481 . Ramming 100 | . 13 3 12 17 31 . . . 17 7 Kinetic 7594 | 60 365 . 2355 190 2268 1993 . . . 363 Thermal 1784 | 102 1250 . 169 . . 263 . . . . Explosive 4547 | . 94 . 3598 . . 1 854 . . . Electromagnetic 31 | . . . 31 . . . . . . . Impact . | . . . . . . . . . . . Slashing 1481 | . . . . . . . . . 1481 . Piercing 172 | . . . . . . . . 172 . . Highest Corruption 3 | . . . . . . 3 3 3 2 2 Average Corruption 1 | . . . . . . 2 3 3 1 2 Corruption Purged . | . . . . . . . . . . . Corruption Blocked . | . . . . . . . . . . . Effects 48 | . . . . . . 22 2 9 13 2 Message Errors 13 | . . . . . . 6 . 2 4 1 Matter Fused 12 | . . . . . . 5 1 1 5 . Heat Flow Errors 5 | . . . . . . 4 . . 1 . Energy Discharges 8 | . . . . . . 3 1 4 . . Parts Rejected 2 | . . . . . . 1 . 1 . . Data Loss (minor) 4 | . . . . . . 1 . 1 1 1 Data Loss (major) 2 | . . . . . . 2 . . . . Misfires 1 | . . . . . . . . . 1 . Alerts 1 | . . . . . . . . . 1 . Overload Shots . | . . . . . . . . . . . Overflow Damage 253 | . . . 108 . . 62 . 8 75 . Projectiles 5 | . . . . . . 5 . . . . Explosions 165 | . . . 108 . . 57 . . . . Melee 83 | . . . . . . . . 8 75 . Knockbacks 121 | . . . 16 5 55 44 . . . 1 Impact 1 | . . . . . 1 . . . . . Kinetic 109 | . . . 14 4 48 42 . . . 1 Secondary 11 | . . . 2 1 6 2 . . . . Self-Inflicted Damage 154 | . . . 70 . . . 73 . 8 3 Shots 6 | . . . 3 . . . 3 . . . Rammed 13 | . . 1 1 3 5 . . . 1 2 Targets Rammed 14 | . 1 1 1 3 5 . . . 1 2 Kicked . | . . . . . . . . . . . Crushed 1 | . 1 . . . . . . . . . Highest Temperature 407 | 54 247 18 217 147 407 240 . . 175 . Average Temperature 66 | 25 58 12 41 78 95 105 . . 74 . Received Heat Transfer 2173 | . 585 . 307 12 504 126 . 228 276 135 Effects 4 | . . . . . 4 . . . . . Damage (major) 4 | . . . . . 4 . . . . . Siege Activations . | . . . . . . . . . . . Robots Corrupted . | . . . . . . . . . . . Combat Hostiles . | . . . . . . . . . . . Parts Fried . | . . . . . . . . . . . Impact Corruptions . | . . . . . . . . . . . Robots Melted 1 | . 1 . . . . . . . . . Combat Hostiles 1 | . 1 . . . . . . . . . Parts Melted 5 | . 4 . 1 . . . . . . . Heat Transferred 4849 | 370 3904 . 375 . . 200 . . . . Parts Sabotaged . | . . . . . . . . . . . Parts Stolen . | . . . . . . . . . . . Parts Stripped . | . . . . . . . . . . . Power Chain Reactions 1 | . . . 1 . . . . . . . Alert | -11 -10 -10 -9 -9 -8 -7 -7 -7 -6 -6 ------- Run | Yrd Mat Min Mat Min Mat Fac Was Fac Fac Low Peak Influence 1684 | 15 227 98 1684 656 333 409 164 251 224 . Initial 656 | . 9 63 . 656 74 139 134 86 92 . Average 291 | 7 85 21 602 429 87 287 132 116 64 . Maximum Alert Level 5 | . 1 . 5 2 1 2 . 1 1 . Low Security (%) 54 | 100 98 100 17 5 92 13 100 93 97 . Level 1 23 | . 1 . 24 47 7 85 . 6 2 . Level 2 12 | . . . 24 47 . . . . . . Level 3 4 | . . . 14 . . . . . . . Level 4 4 | . . . 15 . . . . . . . Level 5 . | . . . 3 . . . . . . . High Security . | . . . . . . . . . . . Max Security . | . . . . . . . . . . . Sterilizations 1 | . . . 1 . . . . . . . Squads Dispatched 43 | . 6 1 10 . 8 11 . 5 2 . Investigation 14 | . 3 1 . . 4 3 . 3 . . Extermination 9 | . . . . . . 6 . 1 2 . Reinforcement 17 | . 3 . 7 . 4 2 . 1 . . Assault 3 | . . . 3 . . . . . . . Garrison . | . . . . . . . . . . . Intercept . | . . . . . . . . . . . Searches Triggered . | . . . . . . . . . . . Construction Impeded 3 | . . . 3 . . . . . . . Haulers Reinforced . | . . . . . . . . . . . Active Scanning Responses . | . . . . . . . . . . . Cargo Convoy Interrupts . | . . . . . . . . . . . Stealth | -11 -10 -10 -9 -9 -8 -7 -7 -7 -6 -6 --------- Run | Yrd Mat Min Mat Min Mat Fac Was Fac Fac Low Distress Signals 11 | . 1 . 2 . 6 2 . . . . Communications Jammed . | . . . . . . . . . . . Distress Signals . | . . . . . . . . . . . Times Spotted 232 | . 35 . 73 3 35 30 6 16 15 19 Peak Tracking Total 9 | . 3 . 6 3 4 4 6 6 3 9 Tactical Retreats 20 | . 2 . 3 . 1 2 . 6 . 6 Traps | -11 -10 -10 -9 -9 -8 -7 -7 -7 -6 -6 ------- Run | Yrd Mat Min Mat Min Mat Fac Was Fac Fac Low Traps Triggered 13 | . 2 . 1 . 3 5 . . 2 . Indirectly . | . . . . . . . . . . . Trap Hack Attempts . | . . . . . . . . . . . Triggered . | . . . . . . . . . . . Disarmed 18 | . . . 6 . . 6 . . 6 . Reprogrammed . | . . . . . . . . . . . Reused . | . . . . . . . . . . . Traps Extracted . | . . . . . . . . . . . Installed . | . . . . . . . . . . . Triggered 1 | . . . . . . . . . . 1 Machines | -11 -10 -10 -9 -9 -8 -7 -7 -7 -6 -6 ---------- Run | Yrd Mat Min Mat Min Mat Fac Was Fac Fac Low Machines Disabled 32 | . . . 21 . . 11 . . . . Max in Single Turn 11 | . . . 2 . . 11 . . . . Garrison Access 2 | . . . . . 1 1 . . . . Machines Repaired . | . . . . . . . . . . . Machines Dismantled . | . . . . . . . . . . . Machines Sabotaged . | . . . . . . . . . . . Overloaded Fab Kills . | . . . . . . . . . . . Hacking | -11 -10 -10 -9 -9 -8 -7 -7 -7 -6 -6 --------- Run | Yrd Mat Min Mat Min Mat Fac Was Fac Fac Low Machines Accessed 51 | . 7 1 9 . 15 8 . 8 3 . Terminals 33 | . 5 . 8 . 9 4 . 5 2 . Fabricators 5 | . . . . . . 1 . 3 1 . Repair Stations 3 | . 1 . 1 . 1 . . . . . Recycling Units 3 | . 1 . . . 2 . . . . . Scanalyzers 4 | . . . . . 2 2 . . . . Garrison Access 2 | . . . . . 1 1 . . . . Total Hacks 139 | . 21 1 26 . 39 26 . 20 6 . Successful 68 | . 9 1 14 . 22 10 . 8 4 . Failed 70 | . 12 . 11 . 17 16 . 12 2 . Catastrophic 10 | . 1 . 1 . 1 2 . 4 1 . Database Lockouts 1 | . . . 1 . . . . . . . Manual 69 | . 19 . 17 . 16 9 . 5 3 . Terminals 96 | . 18 . 24 . 22 16 . 11 5 . Fabricators 13 | . . . . . . 3 . 9 1 . Repair Stations 6 | . 2 . 2 . 2 . . . . . Recycling Units 4 | . 1 . . . 3 . . . . . Scanalyzers 15 | . . . . . 10 5 . . . . Garrison Access 4 | . . . . . 2 2 . . . . Terminal Hacks 26 | . 2 1 6 . 9 4 . 2 2 . Part Schematic 2 | . . . . . . 2 . . . . Robot Analysis 4 | . 2 . 1 . 1 . . . . . Prototype ID Bank 1 | . . . . . 1 . . . . . Open Door 1 | . . 1 . . . . . . . . Branch Access Points 1 | . . . . . . . . 1 . . Alert Level 7 | . . . 2 . 2 1 . 1 1 . Unreport Threat 5 | . . . 1 . 4 . . . . . Locate Traps 2 | . . . 1 . 1 . . . . . Disarm Traps 3 | . . . 1 . . 1 . . 1 . Fabricator Hacks 6 | . . . . . . 1 . 4 1 . Load Schematic 4 | . . . . . . 1 . 3 . . Build 2 | . . . . . . . . 1 1 . Repair Station Hacks 6 | . 2 . 2 . 2 . . . . . Scan Component 3 | . 1 . 1 . 1 . . . . . Repair 3 | . 1 . 1 . 1 . . . . . Recycling Unit Hacks . | . . . . . . . . . . . Scanalyzer 6 | . . . . . 3 3 . . . . Insert Component 4 | . . . . . 3 1 . . . . Analyze 2 | . . . . . . 2 . . . . Garrison Access Hacks 2 | . . . . . 1 1 . . . . Seal Access 2 | . . . . . 1 1 . . . . Unauthorized Hacks 22 | . 5 . 6 . 7 1 . 2 1 . Terminals 19 | . 4 . 6 . 5 1 . 2 1 . Botnet 19 | . 4 . 6 . 5 1 . 2 1 . Fabricators . | . . . . . . . . . . . Repair Stations . | . . . . . . . . . . . Recycling Units 3 | . 1 . . . 2 . . . . . Tunnel 3 | . 1 . . . 2 . . . . . Scanalyzers . | . . . . . . . . . . . Garrison Access . | . . . . . . . . . . . Data Cores Recovered 1 | . . . . . 1 . . . . . Used . | . . . . . . . . . . . Hacking Detections 41 | . 6 . 7 . 10 8 . 7 3 . Full Trace Events 7 | . . . . . 2 2 . 3 . . Feedback Events . | . . . . . . . . . . . Feedback Blocked . | . . . . . . . . . . . Robot Schematics Acquired . | . . . . . . . . . . . Robots Built . | . . . . . . . . . . . Authchips . | . . . . . . . . . . . Time . | . . . . . . . . . . . Total Robot Build Rating . | . . . . . . . . . . . Part Schematics Acquired 2 | . . . . . . 2 . . . . Parts Built 3 | . . . . . . . . 1 2 . Authchips . | . . . . . . . . . . . Time 89 | . . . . . . . . 25 64 . Total Part Build Rating 17 | . . . . . . . . 1 16 . Parts Repaired 3 | . 1 . 1 . 1 . . . . . Time 77 | . 13 . 26 . 38 . . . . . Parts Recycled . | . . . . . . . . . . . Recycled Matter . | . . . . . . . . . . . Retrieved Matter . | . . . . . . . . . . . Retrieved Components . | . . . . . . . . . . . Parts Scanalyzed 1 | . . . . . 1 . . . . . Part Schematics Acquired . | . . . . . . . . . . . Parts Damaged 1 | . . . . . 1 . . . . . Bothacking | -11 -10 -10 -9 -9 -8 -7 -7 -7 -6 -6 ------------ Run | Yrd Mat Min Mat Min Mat Fac Was Fac Fac Low Used RIF Installer . | . . . . . . . . . . . Robots Hacked . | . . . . . . . . . . . Non-combat . | . . . . . . . . . . . Combat . | . . . . . . . . . . . Robot Hacks Applied . | . . . . . . . . . . . Relay Couplers Released . | . . . . . . . . . . . Fabnet Peak Effective % . | . . . . . . . . . . . Robots Rewired . | . . . . . . . . . . . Allies Hacked . | . . . . . . . . . . . Hacks Repelled . | . . . . . . . . . . . Allies | -11 -10 -10 -9 -9 -8 -7 -7 -7 -6 -6 -------- Run | Yrd Mat Min Mat Min Mat Fac Was Fac Fac Low Total Allies 5 | . . 3 . 2 . . . . . . Largest Group 3 | . . 3 1 2 2 . . . . . Highest-Rated Group 48 | . . 40 16 48 48 . . . . . Highest-Rated Ally 31 | . . 16 16 31 31 . . . . . Total Orders . | . . . . . . . . . . . Ally Attacks 57 | . . 22 5 . 30 . . . . . Total Damage 800 | . . 260 45 . 495 . . . . . Kills 9 | . . 3 . . 6 . . . . . Allies Corrupted . | . . . . . . . . . . . Allies Melted . | . . . . . . . . . . . Intel | -11 -10 -10 -9 -9 -8 -7 -7 -7 -6 -6 ------- Run | Yrd Mat Min Mat Min Mat Fac Was Fac Fac Low Robot Analysis Total 4 | . 2 . 1 . 1 . . . . . Derelict Logs Recovered 3 | . . 2 . 1 . . . . . . Drone Launches . | . . . . . . . . . . . Drone Recoveries . | . . . . . . . . . . . Exploration | -11 -10 -10 -9 -9 -8 -7 -7 -7 -6 -6 ------------- Run | Yrd Mat Min Mat Min Mat Fac Was Fac Fac Low Turns Passed 18260 | 86 2008 1395 5441 1698 3223 1970 199 549 1426 265 Spaces Moved 9459 | 38 782 563 2625 686 1694 946 208 591 926 400 Core 1116 | . . . . . . . 177 591 109 239 Treads 6846 | 5 782 563 2139 686 1694 946 31 . . . Legs 33 | 33 . . . . . . . . . . Wheels 1315 | . . . 486 . . . . . 817 12 Hover . | . . . . . . . . . . . Flight 149 | . . . . . . . . . . 149 Fastest Speed 40 | 120 160 240 155 240 156 156 50 50 50 40 Average Speed 161 | 125 198 240 171 240 156 174 67 64 125 49 Slowest Speed 320 | 160 320 240 240 240 240 240 240 100 190 190 Overloaded Moves . | . . . . . . . . . . . Propulsion Burnouts . | . . . . . . . . . . . Robots Hopped 1 | . . . . . . . . . . 1 Cave-ins Triggered . | . . . . . . . . . . . Exploration Rate (%) 62 | 3 99 97 99 99 99 27 72 16 16 58 Regions Visited 10 Branch Regions 3 Pre-discovered Areas 4 | . 1 1 . . 2 . . . . . Known Exits Taken 2 | . . . . . . . . 1 1 . Unknown Exits Taken 6 | 1 1 1 1 1 1 . . . . . Scrap Searched 5 | . . 2 . 2 . . . . . 1 Spaces Dug 89 | . . . 60 . 2 25 . . 2 . Terrain Destroyed 634 | . 22 . 482 . 2 72 54 . 2 . Melee 10 | . . . . . 2 6 . . 2 . Projectile 4 | . . . 4 . . . . . . . AOE 620 | . 22 . 478 . . 66 54 . . . Terrain Rammed . | . . . . . . . . . . . Walls Destroyed . | . . . . . . . . . . . Machines Disabled . | . . . . . . . . . . . Actions | -11 -10 -10 -9 -9 -8 -7 -7 -7 -6 -6 --------- Run | Yrd Mat Min Mat Min Mat Fac Was Fac Fac Low Total 11557 | 55 1045 606 3291 724 2129 1142 259 750 1108 448 Wait 1156 | . 115 23 379 26 264 76 33 149 73 18 Move 9448 | 37 781 562 2624 685 1693 946 207 590 925 398 Hop 1 | . . . . . . . . . . 1 Pick Up 112 | . 19 10 17 1 21 17 3 3 20 1 Fast Attach 44 | 1 3 . 7 1 10 1 1 . 17 3 Attach 35 | 2 5 . 3 . 5 10 1 . 6 3 Detach 7 | . . . . . . . 1 . 3 3 Swap 89 | 1 10 3 38 1 21 7 2 . 6 . Drop 130 | 3 7 6 39 2 35 11 7 3 10 7 Fire 457 | 11 104 1 183 5 73 64 4 . . 12 Melee 57 | . . . . . 2 6 . 5 44 . Ram 3 | . . . . . . . . . 1 2 Kick . | . . . . . . . . . . . Crush 11 | . 1 1 1 3 5 . . . . . Escape Stasis 7 | . . . . . . 4 . . 3 . Rewire . | . . . . . . . . . . . Trap . | . . . . . . . . . . . Miscellaneous . | . . . . . . . . . . . Route ------- -11/Scrapyard -10/Materials (discovered 4 exits: *Mat x3 / *Min) -10/Mines (discovered 3 exits: *Mat x2 / [*Exi]) -9/Materials (discovered 6 exits: *Mat x3 / [*Min] / [*Sto x2]) -9/Mines (discovered 2 exits: *Mat x2) -8/Materials (discovered 3 exits: *Fac x3) -7/Factory (discovered 3 exits: *Fac x2 / *Low) -7/Waste -7/Factory (discovered 3 exits: *Fac / Low x2) -6/Factory -6/Lower Caves History --------- Turn | Location | Event 1 | -11/Scrapyard | Discovered new exit (range 3) 87 | -11/Scrapyard | Entered Materials 310 | -10/Materials | Build established: Mutant 499 | -10/Materials | Discovered new exit (range 16) 635 | -10/Materials | Repaired Lgt. Treads 780 | -10/Materials | Discovered new exit (range 13) 1342 | -10/Materials | Discovered new exit (range 8) 1583 | -10/Materials | Discovered new exit (range 4) 2095 | -10/Materials | Entered Mines 2100 | -10/Mines | Assisted by bots powering up and referring to "LRC-V3" 2134 | -10/Mines | Learned Materials terminal intel 2155 | -10/Mines | Build established: Scavenger-Mutant 2490 | -10/Mines | Discovered new exit (range 10) 2548 | -10/Mines | Discovered new exit (range 12) 2574 | -10/Mines | Received a Rocket Launcher from a helpful Derelict 3121 | -10/Mines | Met a Derelict shopkeep closing up shop 3374 | -10/Mines | Deemed a non-threat by the Exiles lab entrance 3374 | -10/Mines | Discovered new exit (range 5) 3430 | -10/Mines | Build established: Mutant 3490 | -10/Mines | Entered Materials 3490 | -9/Materials | Accompanied by 1 ally 3490 | -9/Materials | Evolved 2 slots: Propulsion x1, Utility x1 3491 | -9/Materials | Loaded intel: 12 terminal locations 3591 | -9/Materials | Discovered new exit (range 15) 4127 | -9/Materials | Repaired Lgt. Treads 4153 | -9/Materials | Build established: Scavenger-Mutant 4328 | -9/Materials | Discovered new exit (range 13) 5071 | -9/Materials | Central database locked down 5193 | -9/Materials | Build established: Mutant 5242 | -9/Materials | Discovered new exit (range 7) 5468 | -9/Materials | Discovered new exit (range 7) 5945 | -9/Materials | Discovered new exit (range 15) 6410 | -9/Materials | Discovered new exit (range 11) 7890 | -9/Materials | First assault squad dispatched 8789 | -9/Materials | Destroyed 8 combat bots 8798 | -9/Materials | Sterilization system engaged 8798 | -9/Materials | Non-combat units ordered to evacuate 8898 | -9/Materials | Combat units ordered to evacuate 8931 | -9/Materials | Entered Mines 9032 | -9/Mines | Found a damaged Exp. Sensor Array with a note attached 9037 | -9/Mines | Found Prototype Device 9037 | -9/Mines | Identified Exp. Sensor Array 9246 | -9/Mines | Discovered new exit (range 16) 9584 | -9/Mines | Learned 2 Materials zone layouts 10142 | -9/Mines | Discovered new exit (range 9) 10629 | -9/Mines | Entered Materials 10629 | -8/Materials | Accompanied by 2 allies 10629 | -8/Materials | Evolved 2 slots: Propulsion x1, Utility x1 10634 | -8/Materials | Led the pair of lost Derelicts to an unsafe place 11235 | -8/Materials | Discovered new exit (range 14) 11780 | -8/Materials | Met 7R-MNS 11886 | -8/Materials | Repaired Flak Cannon 12036 | -8/Materials | Discovered new exit (range 13) 12877 | -8/Materials | Discovered new exit (range 11) 13852 | -8/Materials | Entered Factory 13852 | -7/Factory | Evolved 2 slots: Utility x2 13853 | -7/Factory | Caught up to 7R-MNS 14283 | -7/Factory | Discovered new exit (range 3) 14290 | -7/Factory | Identified exit to Lower Caves 14900 | -7/Factory | Discovered new exit (range 5) 14935 | -7/Factory | Identified exit to Factory 14948 | -7/Factory | Lost 5 parts (1p2n2u) 15517 | -7/Factory | Discovered exit to Factory (range 9) 15822 | -7/Factory | Sucked down chute 15822 | -7/Factory | Entered Waste 15845 | -7/Waste | Spotted C-40 Crusher 15847 | -7/Waste | Spotted C-40 Crusher 15886 | -7/Waste | Crushed by Compactor (1 part destroyed, 1 dropped) 15889 | -7/Waste | Crushed by Compactor (1 part destroyed, 2 dropped) 15892 | -7/Waste | Crushed by Compactor (1 part destroyed, 1 dropped) 15905 | -7/Waste | Spotted C-40 Crusher 15923 | -7/Waste | Lost 4 parts (2n2u) 15986 | -7/Waste | Spotted C-40 Crusher 15989 | -7/Waste | Spotted C-40 Crusher 16002 | -7/Waste | Spotted C-40 Crusher 16011 | -7/Waste | Discovered new exit (range 15) 16020 | -7/Waste | Identified exit to Factory 16021 | -7/Waste | Entered Factory 16353 | -7/Factory | Core integrity fell below 50% 16442 | -7/Factory | Core integrity fell below 20% 16447 | -7/Factory | Fabricated Huge Storage Unit? 16551 | -7/Factory | Discovered exit to Factory (range 11) 16570 | -7/Factory | Entered another Factory area 16570 | -6/Factory | Evolved 2 slots: Power x1, Utility x1 16779 | -6/Factory | Discovered new exit (range 11) 16829 | -6/Factory | Identified exit to Lower Caves 17122 | -6/Factory | Lost 3 parts (2n1u) 17235 | -6/Factory | Build established: Scavenger-Mutant 17675 | -6/Factory | Fabricated Q-thruster (x2) 17898 | -6/Factory | Spotted B-75 Beast 17996 | -6/Factory | Entered Lower Caves 18054 | -6/Lower Caves | Attracted the attention of an 0b10 outpost 18067 | -6/Lower Caves | Core integrity fell below 50% 18105 | -6/Lower Caves | Lost 5 parts (1p2n1u1w) 18165 | -6/Lower Caves | Core integrity fell below 20% 18167 | -6/Lower Caves | Lost 3 parts (1n2u) 18261 | -6/Lower Caves | Destroyed by H-66 Slayer with Gauss Rifle Last Messages --------------- 18074_ Dropped Coil Gun. 18108_ Adv. Heat Sink destroyed. 18119_ System corrupted: Component data lost. 18122_ Targeting Computer destroyed. 18129_ Searching scrap... 18129_ Found Imp. Reaction Control System. 18129_ Found 33 Matter. 18130_ Acquired Imp. Reaction Control System. 18136_ Q-thruster destroyed. 18144_ S-27 Virus knocked back. 18146_ S-27 Virus destroyed. 18149_ Acquired 14 matter. 18161_ Penetrated by Slug. 18161_ Slug penetrates Wall. 18164_ Penetrated by Slug. 18240_ Drone sends a signal. 18240_ Penetrated by Slug. 18241_ H-66 Slayer retrieves Drone. 18244_ Slug penetrates Wall. 18257_ Penetrated by Slug. Map ----- +----------------------------------------------------+ | ?????????????????????????????????????????#"""" | | ??????????????????????????????????????????#"" | | ??????????????????????????????????????????##" | | ???????????????????????????????????????????### | | ????????????????????????????????????????????# | | ????????????????????????????????????????????# | | ????????????????????????????????????????????### # | | ?####?????????????????????????????????????????# # | | ?# ###???????????????????????????????????????# # | | ?# ##??????????????????????????????????????# # | | ?## #??????????????????????????????????????# # | | ?## ##?????????????????????????????########## # | | ## ##??#????? #?#?????????????????# | | ## #????? # ???????????? #???# | | #????? #?????????? ????# ### | | #????? ?????????? ????# #?# | | ###????## ?????????? ?????# #?######## | | ### #??????? #????????? #?????# ## ##????? | | #?## #??????# #????????? #?????## ###??? | | #??## #???#### ##???##### #???### #??? | | #???## ##???# ## ##?## #??## ## #??? | | #????####????# # #?# ????# #??###??? | | ##???####????# ### #?????# ##???????? | | #???# ##???# ## #?????## ##????????? | | ##??# #?### #??????# ###?????????? | | #### ### @ ######## #???????????? | | ## ## #???????????? | | #???????????? | | # #######???????????? | | # ## ##?????????????????? | | # #### ##??????????????????? | | ##?# ## h ##???????????????????? | | ### ##### ### ##????????????????????? | | #???## #?## #?????????????????????? | | #????# #??# ##????????????????????? | | ##???## #??# ##?????? ?????????? | | #????## #### ### ????????? | | #????## ## ????????? | | ## #???## ## ????????? | | ##### ##?### ## #####?????????????? | | #??## #?## #### #?????????????????? | | #???# ##?# ##??## ##?????????????????? | | #???# ##??# #????## ##??????????????????? | | ##???###???# #????# ##???????????????????? | | ###??????????# ##????#####????????????????????? | | ?????????????######??????????????????????????????? | | ?????????????????????????????????????????????????? | | ?????????????????????????????????????????????????? | | ?????????????????????????????????????????????????? | | ?????????????????????????????????????????????????? | +----------------------------------------------------+ Best States ------------- Heat Dissipation 61 Energy Generation 33 Energy Capacity 900 Matter Stores 300 Matter Capacity 300 Sight Range 16 Robot Scan Range 15 Terrain Scan Range 16 Terrain Scan Density 10 Armor Coverage 600 Resistance: TH 20 Core Shielding 20 Propulsion Shielding 66 Evasion (%) 62 Targeting Accuracy 8 Recoil Reduction 4 Offensive Hacking 10 Item Schematics ----------------- Huge Storage Unit | -7/Factory | Hacked Imp. System Shield | -7/Factory | Hacked Robot Schematics ------------------ None Fabricated ------------ Huge Storage Unit | x1 | -7/Factory Q-thruster | x2 | -6/Factory | Preloaded Alien Tech Used ----------------- None Achievements -------------- None Challenges ------------ None Game ------ Seed MobileNovaDriver Manual? 0 Play Time 01:36:28 Cumulative 160.6 hours Start 2024.09.27 @ 03:43:13 End 2024.09.27 @ 05:35:21 Sessions 3 Manual Loads 0 Difficulty Rogue Special Mode None Game No. 207 Rogue 207 Adventurer 0 Explorer 0 Win Type - Total 1 Types 1/0/0/0/0/0/0/0/0 Lore% 52 Gallery% 62 Achievement% 49 Wizard Run 0 Options --------- Layout 0 ASCII 0 Keyboard 0 Movement Mouse Keybinds 1 Fullscreen 1 Font 18/Terminus Map View 76x50 Zoom Use 0% Tactical HUD 1 Map Filters NONE Filters NONE Steam 0 RUN: 89932aa6-424d-4db2-b0cb-fe068e2f7cc3